fUST/lending_fUST_20241211
["ID","MTS","AMOUNT","RATE_DAILY","PERIOD"]
[344922805,1733883034192,-503.16354387,0.00029863,7]
[344922806,1733883034202,-483.71158895,0.00029863,7]
[344922807,1733883034212,-504.37942869,0.00029863,7]
[344922808,1733883034221,-500.82560787,0.00029863,7]
[344922809,1733883034231,-500.0,0.00029863,7]
[344922810,1733883034241,-500.0,0.00029863,7]
[344922811,1733883034251,-500.0,0.00029863,7]
[344922812,1733883034265,-500.0,0.00029863,7]
[344922813,1733883034275,-511.25018073,0.00029863,7]
[344922814,1733883034284,-500.0,0.00029863,7]
[344922815,1733883034294,-500.0,0.00029863,7]
[344922816,1733883034304,-500.0,0.00029863,7]
[344922817,1733883034313,-500.0,0.00029863,7]
[344922818,1733883034324,-500.0,0.00029863,7]
[344922819,1733883034334,-500.0,0.00029863,7]
[344922820,1733883034344,-500.0,0.00029863,7]
[344922821,1733883034353,-500.0,0.00029863,7]
[344922822,1733883034362,-500.0,0.00029863,7]
[344922823,1733883034373,-500.0,0.00029863,7]
[344922824,1733883034383,-500.0,0.00029863,7]
[344922825,1733883034392,-500.0,0.00029863,7]
[344922826,1733883034404,-500.0,0.00029863,7]
[344922827,1733883034413,-507.11838912,0.00029863,7]
[344922828,1733883034423,-500.0,0.00029863,7]
[344922829,1733883034433,-500.0,0.00029863,7]
[344922830,1733883034442,-500.0,0.00029863,7]
[344922831,1733883034452,-500.0,0.00029863,7]
[344922832,1733883034461,-500.0,0.00029863,7]
[344922833,1733883034471,-500.0,0.00029863,7]
[344922834,1733883034480,-500.0,0.00029863,7]
[344922835,1733883034490,-500.0,0.00029863,7]
[344922836,1733883034499,-500.0,0.00029863,7]
[344922837,1733883034515,-500.0,0.00029863,7]
[344922838,1733883034524,-500.0,0.00029863,7]
[344922839,1733883034534,-3045.07,0.00029863,7]
[344922840,1733883034544,-229.73629732,0.00029863,7]
[344922841,1733883034554,-3045.07,0.00029863,7]
[344922842,1733883034571,-3045.07,0.00029863,7]
[344922843,1733883034585,-3045.07,0.00029863,7]
[344922844,1733883034595,-3045.07,0.00029863,7]
[344922845,1733883034605,-500.0,0.00029863,7]
[344922846,1733883034615,-3045.07,0.00029863,7]
[344922847,1733883034625,-500.0,0.00029863,7]
[344922848,1733883034635,-3045.07,0.00029863,7]
[344922849,1733883034645,-500.0,0.00029863,7]
[344922850,1733883034655,-3045.07,0.00029863,7]
[344922851,1733883034665,-500.0,0.00029863,7]
[344922852,1733883034675,-3045.07,0.00029863,7]
[344922853,1733883034685,-291.65243166,0.00029863,7]
[344922854,1733883034695,-506.7575397,0.00029863,7]
[344922855,1733883034705,-500.0,0.00029863,7]
[344922856,1733883034715,-505.03349359,0.00029863,7]
[344922857,1733883034724,-500.0,0.00029863,7]
[344922858,1733883034734,-541.93108397,0.00029863,7]
[344922859,1733883034744,-500.0,0.00029863,7]
[344922860,1733883034755,-507.75371493,0.00029863,7]
[344922861,1733883034771,-508.49400974,0.00029863,7]
[344922862,1733883034781,-500.0,0.00029863,7]
[344922863,1733883034791,-570.91298956,0.00029863,7]
[344922864,1733883034800,-514.79783754,0.00029863,7]
[344922865,1733883034810,-508.8782833,0.00029863,7]
[344922866,1733883034819,-500.0,0.00029863,7]
[344922867,1733883034829,-513.10413194,0.00029863,7]
[344922868,1733883034839,-500.0,0.00029863,7]
[344922869,1733883034849,-507.64223615,0.00029863,7]
[344922870,1733883034859,-523.96112572,0.00029863,7]
[344922871,1733883034869,-231.59916026,0.00029863,7]
[344922872,1733883034879,-500.0,0.00029863,7]
[344922873,1733883034889,-510.32668119,0.00029863,7]
[344922874,1733883034898,-288.53342198,0.00029863,7]
[344922875,1733883034908,-506.5516662,0.00029863,7]
[344922876,1733883034918,-500.0,0.00029863,7]
[344922877,1733883034927,-503.84655979,0.00029863,7]
[344922878,1733883034937,-525.56294668,0.00029863,7]
[344922879,1733883034946,-500.0,0.00029863,7]
[344922880,1733883034956,-500.0,0.00029863,7]
[344922881,1733883034969,-500.0,0.00029863,7]
[344922882,1733883034979,-500.0,0.00029863,7]
[344922883,1733883034988,-500.0,0.00029863,7]
[344922884,1733883034998,-500.0,0.00029863,7]
[344922885,1733883035011,-500.0,0.00029863,7]
[344922886,1733883035020,-336.07788606,0.00029863,7]
[344922887,1733883035030,-500.0,0.00029863,7]
[344922888,1733883035041,-417.82851386,0.00029863,7]
[344922889,1733883035051,-506.78705215,0.00029863,7]
[344922890,1733883035060,-511.993232,0.00029863,7]
[344922891,1733883035070,-507.55611706,0.00029863,7]
[344922892,1733883035079,-500.0,0.00029863,7]
[344922893,1733883035089,-517.12162988,0.00029863,7]
[344922894,1733883035098,-501.80051252,0.00029863,7]
[344922895,1733883035108,-546.16523708,0.00029863,7]
[344922896,1733883035117,-481.45642727,0.00029863,7]
[344922897,1733883035128,-500.0,0.00029863,7]
[344922898,1733883035137,-195.22947112,0.00029863,7]
[344922899,1733883035147,-500.0,0.00029863,7]
[344922900,1733883035156,-500.0,0.00029863,7]
[344922901,1733883035166,-583.62236799,0.00029863,7]
[344922902,1733883035175,-500.0,0.00029863,7]
[344922903,1733883035184,-539.50666772,0.00029863,7]
[344922904,1733883035193,-510.18455996,0.00029863,7]
[344922905,1733883035202,-500.0,0.00029863,7]
[344922906,1733883035212,-505.04657533,0.00029863,7]
[344922907,1733883035221,-500.0,0.00029863,2]
[344922908,1733883035230,-500.0,0.00029863,2]
[344922909,1733883035240,-500.0,0.00029863,2]
[344922910,1733883035250,-500.0,0.00029863,2]
[344922911,1733883035263,-500.0,0.00029863,2]
[344922912,1733883035273,-243.62098489,0.00029863,2]
[344922913,1733883035282,-471.03342763,0.00029863,7]
[344922914,1733883035291,-500.0,0.00029863,7]
[344922915,1733883035300,-500.0,0.00029863,7]
[344922916,1733883035310,-278.12396276,0.00029863,7]
[344922917,1733883035319,-500.0,0.00029863,7]
[344922918,1733883035329,-500.0,0.00029863,7]
[344922919,1733883035339,-310.9429722,0.00029863,7]
[344922920,1733883035349,-500.0,0.00029863,7]
[344922921,1733883035359,-508.9811026,0.00029863,7]
[344922922,1733883035368,-502.60663685,0.00029863,7]
[344922923,1733883035378,-505.92746658,0.00029863,7]
[344922924,1733883035387,-500.0,0.00029863,7]
[344922925,1733883035397,-613.90123518,0.00029863,7]
[344922926,1733883035406,-519.64212875,0.00029863,7]
[344922927,1733883035416,-508.17049104,0.00029863,7]
[344922928,1733883035426,-497.24032597,0.00029863,7]
[344922929,1733883035503,-2.75967403,0.00029863,7]
[344922930,1733883035515,-500.0,0.00029863,7]
[344922931,1733883035524,-500.0,0.00029863,7]
[344922932,1733883035533,-576.41579223,0.00029863,7]
[344922933,1733883035544,-500.0,0.00029863,7]
[344922934,1733883035553,-500.0,0.00029863,7]
[344922935,1733883035562,-502.71530566,0.00029863,7]
[344922936,1733883035572,-500.0,0.00029863,7]
[344922937,1733883035581,-500.0,0.00029863,7]
[344922938,1733883035591,-500.0,0.00029863,7]
[344922939,1733883035600,-356.40302358,0.00029863,7]
[344922940,1733883035610,-500.0,0.00029863,7]
[344922941,1733883035620,-212.88309704,0.00029863,7]
[344922942,1733883035629,-500.0,0.00029863,7]
[344922943,1733883035639,-502.56349857,0.00029863,7]
[344922944,1733883035648,-500.0,0.00029863,7]
[344922945,1733883035657,-500.0,0.00029863,7]
[344922946,1733883035667,-339.44950496,0.00029863,7]
[344922947,1733883035676,-500.0,0.00029863,7]
[344922948,1733883035686,-500.0,0.00029863,7]
[344922949,1733883035695,-500.0,0.00029863,7]
[344922950,1733883035704,-500.0,0.00029863,7]
[344922951,1733883035714,-500.0,0.00029863,7]
[344922952,1733883035723,-500.0,0.00029863,7]
[344922953,1733883035732,-500.0,0.00029863,7]
[344922954,1733883035742,-500.0,0.00029863,7]
[344922955,1733883035752,-500.0,0.00029863,7]
[344922956,1733883035763,-500.0,0.00029863,7]
[344922957,1733883035773,-522.30873634,0.00029863,7]
[344922958,1733883035782,-526.04406256,0.00029863,7]
[344922959,1733883035791,-360.46399812,0.00029863,7]
[344922960,1733883035802,-500.0,0.00029863,7]
[344922961,1733883035811,-500.0,0.00029863,7]
[344922962,1733883035820,-500.0,0.00029863,7]
[344922963,1733883035829,-500.0,0.00029863,7]
[344922964,1733883035838,-500.0,0.00029863,7]
[344922965,1733883035848,-500.0,0.00029863,7]
[344922966,1733883035857,-500.0,0.00029863,7]
[344922967,1733883035866,-543.1719467,0.00029863,7]
[344922968,1733883035877,-500.0,0.00029863,7]
[344922969,1733883035886,-500.0,0.00029863,7]
[344922970,1733883035895,-370.84843094,0.00029863,7]
[344922971,1733883035905,-500.0,0.00029863,7]
[344922972,1733883035915,-500.0,0.00029863,7]
[344922973,1733883035926,-500.0,0.00029863,7]
[344922974,1733883035935,-500.0,0.00029863,7]
[344922975,1733883035945,-500.0,0.00029863,2]
[344922976,1733883035955,-500.0,0.00029863,7]
[344922977,1733883035969,-500.0,0.00029863,2]
[344922978,1733883035979,-500.0,0.00029863,7]
[344922979,1733883035988,-276.35781052,0.00029863,2]
[344922980,1733883035998,-500.0,0.00029863,7]
[344922981,1733883036010,-295.15094307,0.00029863,7]
[344922982,1733883036019,-504.02145054,0.00029863,7]
[344922983,1733883036028,-500.0,0.00029863,7]
[344922984,1733883036038,-500.0,0.00029863,7]
[344922985,1733883036160,-500.0,0.00029863,7]
[344922986,1733883036169,-500.0,0.00029863,7]
[344922987,1733883036178,-500.0,0.00029863,7]
[344922988,1733883036187,-500.0,0.00029863,7]
[344922989,1733883036197,-500.0,0.00029863,7]
[344922990,1733883036205,-500.0,0.00029863,7]
[344922991,1733883036215,-452.64289817,0.00029863,7]
[344922992,1733883036224,-500.0,0.00029863,7]
[344922993,1733883036234,-569.27630504,0.00029863,7]
[344922994,1733883036243,-500.0,0.00029863,7]
[344922995,1733883036253,-503.66611312,0.00029863,7]
[344922996,1733883036265,-500.0,0.00029863,7]
[344922997,1733883036274,-500.0,0.00029863,7]
[344922998,1733883036283,-500.0,0.00029863,7]
[344922999,1733883036292,-195.64580289,0.00029863,7]
[344923000,1733883036301,-525.21537922,0.00029863,7]
[344923001,1733883036311,-500.0,0.00029863,7]
[344923002,1733883036320,-504.59593466,0.00029863,7]
[344923003,1733883036329,-505.27761128,0.00029863,7]
[344923004,1733883036338,-500.0,0.00029863,7]
[344923005,1733883036347,-500.0,0.00029863,7]
[344923006,1733883036357,-500.0,0.00029863,7]
[344923007,1733883036366,-500.0,0.00029863,7]
[344923008,1733883036375,-500.0,0.00029863,7]
[344923009,1733883036385,-514.29119091,0.00029863,7]
[344923010,1733883036394,-500.0,0.00029873,5]
[344923011,1733883036403,-160.01873122,0.00029873,5]
[344923012,1733883036413,-160.51878977,0.00029873,5]
[344923013,1733883036422,-500.0,0.00029873,5]
[344923014,1733883036431,-302.75782099,0.00029891,2]
[344923015,1733883036441,-500.0,0.00029899,7]
[344923016,1733883036450,-500.0,0.00029899,7]
[344923017,1733883036459,-3045.07,0.00029899,7]
[344923018,1733883036469,-478.4215872,0.00029899,7]
[344923019,1733883036479,-299.44,0.000299,31]
[344923020,1733883036488,-299.44,0.000299,31]
[344923021,1733883036498,-299.44,0.000299,31]
[344923022,1733883036510,-299.44,0.000299,31]
[344923023,1733883036519,-299.44,0.000299,31]
[344923024,1733883036528,-299.44,0.000299,31]
[344923025,1733883036538,-299.44,0.000299,31]
[344923026,1733883036547,-299.44,0.000299,31]
[344923027,1733883036557,-299.44,0.000299,31]
[344923028,1733883036567,-299.44,0.000299,31]
[344923029,1733883036576,-299.44,0.000299,31]
[344923030,1733883036586,-299.44,0.000299,31]
[344923031,1733883036595,-160.0,0.00029915,4]
[344923032,1733883036605,-160.9538981,0.00029915,5]
[344923033,1733883036614,-833.78,0.00029942,7]
[344923034,1733883036624,-500.0,0.00029942,7]
[344923035,1733883036633,-283.70891769,0.00029942,7]
[344923036,1733883036643,-500.0,0.00029944,7]
[344923037,1733883036652,-500.0,0.00029944,7]
[344923038,1733883036662,-150.374,0.00029945,2]
[344923039,1733883036671,-150.0,0.00029945,2]
[344923040,1733883036681,-150.682,0.00029945,2]
[344923041,1733883036690,-533.0,0.00029945,2]
[344923042,1733883036699,-2163.0,0.00029945,2]
[344923043,1733883036709,-2377.868,0.00029945,2]
[344923044,1733883036718,-367.536,0.00029945,2]
[344923045,1733883036728,-303.21399002,0.00029945,2]
[344923046,1733883036737,-833.78,0.00029947,7]
[344923047,1733883036747,-500.0,0.00029947,7]
[344923048,1733883036759,-500.0,0.00029947,7]
[344923049,1733883036769,-3045.07,0.00029947,7]
[344923050,1733883036778,-500.0,0.00029947,7]
[344923051,1733883036788,-151.0,0.00029948,15]
[344923052,1733883036798,-7479.18245909,0.00029949,2]
[344923053,1733883036806,-2500.0,0.00029991,3]
[344923054,1733883036816,-500.0,0.00029999,7]
[344923055,1733883036826,-500.0,0.00029999,7]
[344923056,1733883036835,-833.78,0.00029999,7]
[344923057,1733883036845,-500.0,0.00029999,7]
[344923058,1733883036854,-500.0,0.00029999,7]
[344923059,1733883036863,-3045.07,0.00029999,7]
[344923060,1733883036872,-396.68688181,0.00029999,7]
[344923061,1733883036881,-160.0,0.00029999,10]
[344923062,1733883036891,-801.6,0.0003,2]
[344923063,1733883036900,-151.0,0.0003,120]
[344923064,1733883036909,-151.0,0.0003,120]
[344923065,1733883036919,-2500.0,0.0003,3]
[344923066,1733883036928,-156.14925,0.0003,2]
[344923067,1733883036939,-2000.0,0.0003,2]
[344923068,1733883036948,-187.0,0.0003,2]
[344923069,1733883036960,-187.5,0.0003,2]
[344923070,1733883036971,-151.0,0.0003,13]
[344923071,1733883036980,-151.0,0.0003,19]
[344923072,1733883036990,-151.0,0.0003,18]
[344923073,1733883036999,-151.0,0.0003,12]
[344923074,1733883037011,-299.44,0.0003,31]
[344923075,1733883037021,-299.44,0.0003,31]
[344923076,1733883037030,-299.44,0.0003,31]
[344923077,1733883037040,-299.44,0.0003,31]
[344923078,1733883037049,-299.44,0.0003,31]
[344923079,1733883037058,-299.44,0.0003,31]
[344923080,1733883037067,-299.44,0.0003,31]
[344923081,1733883037077,-299.44,0.0003,31]
[344923082,1733883037086,-299.44,0.0003,31]
[344923083,1733883037095,-299.44,0.0003,31]
[344923084,1733883037104,-299.44,0.0003,31]
[344923085,1733883037114,-299.44,0.0003,31]
[344923086,1733883037123,-299.44,0.0003,31]
[344923087,1733883037133,-299.44,0.0003,31]
[344923088,1733883037142,-299.44,0.0003,31]
[344923089,1733883037151,-299.44,0.0003,31]
[344923090,1733883037160,-299.44,0.0003,31]
[344923091,1733883037169,-299.44,0.0003,31]
[344923092,1733883037179,-299.44,0.0003,31]
[344923093,1733883037189,-299.44,0.0003,31]
[344923094,1733883037198,-299.44,0.0003,31]
[344923095,1733883037207,-299.44,0.0003,31]
[344923096,1733883037216,-299.44,0.0003,31]
[344923097,1733883037225,-299.44,0.0003,31]
[344923098,1733883037234,-300.0,0.0003,14]
[344923099,1733883037243,-151.0,0.0003,18]
[344923100,1733883037253,-1000.0,0.0003,2]
[344923101,1733883037264,-179.943589,0.0003,2]
[344923102,1733883037274,-206.0,0.0003,2]
[344923103,1733883037283,-500.0,0.0003,32]
[344923104,1733883037292,-160.68358195,0.00030029,10]
[344923105,1733883037301,-150.01,0.00030029,2]
[344923106,1733883037310,-2717.58038422,0.0003003,2]
[344923107,1733883037319,-536.95836388,0.00030037,7]
[344923108,1733883037328,-500.0,0.00030037,7]
[344923109,1733883037338,-3045.07,0.00030037,7]
[344923110,1733883037347,-500.0,0.00030038,2]
[344923111,1733883037357,-504.73129196,0.00030039,2]
[344923112,1733883037366,-151.0,0.00030039,7]
[344923113,1733883037375,-151.0,0.00030039,7]
[344923114,1733883037385,-151.0,0.00030039,7]
[344923115,1733883037394,-833.78,0.00030039,7]
[344923116,1733883037403,-3200.0,0.0003004,2]
[344923117,1733883037416,-500.0,0.00030041,11]
[344923118,1733883037426,-503.04582118,0.00030041,11]
[344923119,1733883037435,-154.87609912,0.00030041,2]
[344923120,1733883037444,-335.36776799,0.00030042,7]
[344923121,1733883037454,-500.0,0.00030042,7]
[344923122,1733883037463,-833.78,0.00030042,7]
[344923123,1733883037473,-500.0,0.00030042,7]
[344923124,1733883037482,-3045.07,0.00030042,7]
[344923125,1733883037492,-150.0,0.00030043,7]
[344923126,1733883037501,-166.78,0.00030043,7]
[344923127,1733883037513,-151.0,0.00030043,7]
[344923128,1733883037522,-833.78,0.00030046,7]
[344923129,1733883037532,-833.78,0.00030046,7]
[344923130,1733883037541,-500.0,0.00030046,7]
[344923131,1733883037551,-500.0,0.00030046,7]
[344923132,1733883037560,-3045.07,0.00030046,7]
[344923133,1733883037569,-3045.07,0.00030046,7]
[344923134,1733883037579,-151.0,0.00030047,7]
[344923135,1733883037589,-151.0,0.00030047,7]
[344923136,1733883037598,-240.984062,0.00030047,7]
[344923137,1733883037607,-833.78,0.00030047,7]
[344923138,1733883037616,-500.0,0.00030047,7]
[344923139,1733883037636,-3045.07,0.00030047,7]
[344923140,1733883037646,-151.0,0.00030048,7]
[344923141,1733883037655,-151.0,0.00030048,7]
[344923142,1733883037664,-151.0,0.00030048,7]
[344923143,1733883037674,-151.0,0.00030048,7]
[344923144,1733883037683,-151.0,0.00030048,7]
[344923145,1733883037693,-151.0,0.00030048,7]
[344923146,1733883037702,-151.0,0.00030048,7]
[344923147,1733883037711,-151.0,0.00030048,7]
[344923148,1733883037721,-151.0,0.00030048,7]
[344923149,1733883037730,-151.0,0.00030048,7]
[344923150,1733883037739,-151.0,0.00030048,7]
[344923151,1733883037748,-151.0,0.00030048,7]
[344923152,1733883037760,-151.0,0.00030048,7]
[344923153,1733883037770,-151.0,0.00030048,7]
[344923154,1733883037779,-151.0,0.00030048,7]
[344923155,1733883037788,-151.0,0.00030048,7]
[344923156,1733883037797,-151.0,0.00030048,7]
[344923157,1733883037807,-151.0,0.00030048,7]
[344923158,1733883037816,-279.309204,0.00030048,7]
[344923159,1733883037826,-316.420856,0.00030048,7]
[344923160,1733883037835,-316.420856,0.00030048,7]
[344923161,1733883037846,-316.420856,0.00030048,7]
[344923162,1733883037855,-316.420856,0.00030048,7]
[344923163,1733883037865,-316.420856,0.00030048,7]
[344923164,1733883037875,-316.420856,0.00030048,7]
[344923165,1733883037885,-316.420856,0.00030048,7]
[344923166,1733883037895,-316.420856,0.00030048,7]
[344923167,1733883037904,-316.420856,0.00030048,7]
[344923168,1733883037913,-316.420856,0.00030048,7]
[344923169,1733883037923,-316.420856,0.00030048,7]
[344923170,1733883037932,-316.420856,0.00030048,7]
[344923171,1733883037941,-316.420856,0.00030048,7]
[344923173,1733883037951,-316.420856,0.00030048,7]
[344923175,1733883037964,-316.420856,0.00030048,7]
[344923177,1733883037974,-316.420856,0.00030048,7]
[344923178,1733883037983,-316.420856,0.00030048,7]
[344923179,1733883037992,-316.420856,0.00030048,7]
[344923180,1733883038002,-316.420856,0.00030048,7]
[344923181,1733883038017,-316.42085,0.00030048,7]
[344923182,1733883038028,-245.332678,0.00030048,7]
[344923183,1733883038039,-151.0,0.00030048,7]
[344923184,1733883038049,-151.0,0.00030048,7]
[344923185,1733883038058,-151.0,0.00030048,7]
[344923186,1733883038068,-151.0,0.00030048,7]
[344923187,1733883038077,-151.0,0.00030048,7]
[344923188,1733883038086,-151.0,0.00030048,7]
[344923189,1733883038095,-151.0,0.00030048,7]
[344923190,1733883038105,-151.0,0.00030048,7]
[344923191,1733883038114,-151.0,0.00030048,7]
[344923192,1733883038124,-234.089797,0.00030048,7]
[344923193,1733883038133,-151.0,0.00030048,7]
[344923194,1733883038142,-151.0,0.00030048,7]
[344923195,1733883038152,-151.0,0.00030048,7]
[344923196,1733883038161,-151.0,0.00030048,7]
[344923197,1733883038170,-151.0,0.00030048,7]
[344923198,1733883038179,-151.0,0.00030048,7]
[344923199,1733883038189,-151.0,0.00030048,7]
[344923200,1733883038198,-151.0,0.00030048,7]
[344923201,1733883038207,-151.0,0.00030048,7]
[344923202,1733883038217,-151.0,0.00030048,7]
[344923203,1733883038226,-151.0,0.00030048,7]
[344923204,1733883038235,-178.083337,0.00030048,7]
[344923205,1733883038244,-151.0,0.00030048,7]
[344923206,1733883038254,-151.0,0.00030048,7]
[344923207,1733883038266,-833.78,0.00030048,7]
[344923208,1733883038277,-197.04607129,0.00030048,7]
[344923209,1733883038292,-636.73392871,0.00030048,7]
[344923210,1733883038301,-833.78,0.00030048,7]
[344923211,1733883038312,-833.78,0.00030048,7]
[344923212,1733883038321,-833.78,0.00030048,7]
[344923213,1733883038332,-833.78,0.00030048,7]
[344923214,1733883038342,-833.78,0.00030048,7]
[344923215,1733883038352,-833.94492802,0.00030048,7]
[344923216,1733883038362,-500.0,0.00030048,7]
[344923217,1733883038371,-500.0,0.00030048,7]
[344923218,1733883038381,-495.2328551,0.00030048,7]
[344923219,1733883038391,-3045.07,0.00030048,7]
[344923220,1733883038401,-3045.07,0.00030048,7]
[344923221,1733883038410,-3013.09090398,0.00030048,7]
[344923222,1733883038569,-158.21589264,0.00029129,2]
[344923223,1733883038579,-158.21589264,0.00029539,2]
[344923224,1733883038588,-503.00220446,0.00029863,7]
[344923225,1733883038598,-500.0,0.00029863,7]
[344923226,1733883038607,-500.0,0.00029863,7]
[344923227,1733883038617,-31.97909602,0.00030048,7]
[344923228,1733883038628,-3045.07,0.00030048,7]
[344923229,1733883038637,-3045.07,0.00030048,7]
[344923230,1733883038647,-3045.07,0.00030048,7]
[344923231,1733883038656,-3045.10572373,0.00030048,7]
[344923232,1733883038666,-785145.21334747,0.00030049,10]
[344923233,1733883038677,-3589.51632149,0.00030049,10]
[344923246,1733883043325,-502.79464934,0.00029863,7]
[344923249,1733883043335,-158.21589264,0.00029949,2]
[344923252,1733883043345,-1355.32376558,0.00030049,10]
[344923259,1733883043850,-507.60447662,0.00029863,7]
[344923260,1733883043859,-651.1004115,0.00030049,10]
[344923265,1733883044067,-10016.94998531,0.00030049,10]
[344923364,1733883046275,-3200.0,0.00030049,2]
[344923366,1733883046284,-83564.0090769,0.00030049,10]
[344923368,1733883046296,-347.56382516,0.00030049,10]
[344923370,1733883046307,-11189.9996,0.00030049,10]
[344923378,1733883046379,-7438.72715501,0.00030049,10]
[344923381,1733883046391,-3125.48340025,0.00030049,10]
[344923383,1733883046403,-5134.15,0.00030049,10]
[344923385,1733883046414,-3973.89999999,0.00030049,10]
[344923506,1733883162561,167.340008,0.00013973,2]
[344923518,1733883510218,500.0,0.00026,120]
[344923650,1733884235567,-314.28454567,0.00023,19]
[344923651,1733884235576,-26.12237312,0.00025,2]
[344923652,1733884235590,-1137.90569731,0.00025,2]
[344923653,1733884235600,-500.0,0.00027,120]
[344923654,1733884235609,-500.0,0.00027886,2]
[344923655,1733884235619,-275.85584338,0.00028,120]
[344923733,1733884348809,167.340008,0.00013973,2]
[344923840,1733885247543,163.3865426,0.00013973,2]
[344923904,1733885433217,-300.0,0.00024899,2]
[344923905,1733885433227,-300.0,0.00024899,2]
[344923906,1733885433236,-30376.00355016,0.00025099,2]
[344923907,1733885433247,-163.28279332,0.00025099,2]
[344923908,1733885433257,-420.0,0.00026977,2]
[344923909,1733885433271,-420.0,0.00027389,2]
[344923910,1733885433281,-1276.2510721,0.00027679,2]
[344923911,1733885433291,-224.14415662,0.00028,120]
[344923912,1733885433300,-160.01873122,0.00028417,5]
[344923913,1733885433310,-160.51878977,0.00028417,5]
[344923914,1733885433319,-322.16526567,0.0002855,2]
[344923936,1733885440189,-222.34273433,0.0002855,2]
[344923938,1733885440200,-500.0,0.00029,120]
[344923939,1733885440209,-2110.55667966,0.00029,14]
[344923940,1733885440218,-500.0,0.00029099,2]
[344923941,1733885440229,-644.97893865,0.00029099,2]
[344923942,1733885440239,-500.0,0.00029099,2]
[344923943,1733885440248,-644.97893865,0.00029099,2]
[344923944,1733885440257,-500.0,0.00029099,2]
[344923945,1733885440267,-294.54547569,0.00029099,2]
[344923946,1733885440277,-500.0,0.00029099,2]
[344923947,1733885440286,-644.97893865,0.00029099,2]
[344923948,1733885440296,-538.6883911,0.00029099,2]
[344923949,1733885440306,-238.43207132,0.00029099,2]
[344923950,1733885440316,-644.97893865,0.00029099,2]
[344923951,1733885440326,-644.97893865,0.00029099,2]
[344923952,1733885440335,-500.0,0.00029099,2]
[344923953,1733885440345,-644.97893865,0.00029099,2]
[344923954,1733885440355,-644.97893865,0.00029099,2]
[344923955,1733885440364,-500.0,0.00029099,2]
[344923956,1733885440374,-644.97893865,0.00029099,2]
[344923957,1733885440383,-644.97893865,0.00029099,2]
[344923958,1733885440393,-500.0,0.00029099,2]
[344923959,1733885440403,-644.97893865,0.00029099,2]
[344923960,1733885440414,-644.97893865,0.00029099,2]
[344923961,1733885440423,-644.97893865,0.00029099,2]
[344923962,1733885440434,-644.97893865,0.00029099,2]
[344923963,1733885440443,-644.97893865,0.00029099,2]
[344923964,1733885440453,-644.97893865,0.00029099,2]
[344923965,1733885440463,-644.97893865,0.00029099,2]
[344923966,1733885440473,-644.97893865,0.00029099,2]
[344923967,1733885440482,-644.97893865,0.00029099,2]
[344923968,1733885440492,-644.97893865,0.00029099,2]
[344923969,1733885440502,-644.97893865,0.00029099,2]
[344923971,1733885440512,-644.97893865,0.00029099,2]
[344923973,1733885440525,-644.97893865,0.00029099,2]
[344923974,1733885440539,-644.97893865,0.00029099,2]
[344923977,1733885440557,-644.97893865,0.00029099,2]
[344923979,1733885440569,-644.97893865,0.00029099,2]
[344923980,1733885440579,-644.97893865,0.00029099,2]